Cogmind - Beta 10.2 *** ADVENTURER MODE // 2021.03.19 @ 18:00:50 Player: Era Result: Destroyed by B-75 Beast with Magnetic Acceleration Cannon Performance ------------- Evolutions (1) 500 Regions Visited (5) 1000 Robots Destroyed (43) 215 Value Destroyed (1150) 1150 Prototype IDs (6) 120 Alien Tech Used (0) 0 Bonus (861) 861 TOTAL SCORE: 3846 Bonus ------- Follower Combat Kills 261 Met Imprinter 300 Was Imprinted 300 Cogmind --------- Core Integrity 0/400 Matter 300/300 Energy 290/290 System Corruption 0% Temperature Cool (264) Movement Flying (40) Location -6/Proximity Caves Parts ------- > --- POWER (1) -------- Improved Deuterium Engine > --- PROPULSION (2) --- Makeshift Flight Unit > --- UTILITY (4) ------ Weight Redist. System Makeshift Hacking Suite Makeshift System Shield > --- WEAPON (2) ------- Enhanced Flamer > --- INVENTORY (4) ---- Barrage Gun Datajack Peak State ------------ > --- POWER ------------ Improved Deuterium Engine > --- PROPULSION ------- VTOL Module Makeshift Flight Unit > --- UTILITY ---------- Weight Redist. System Improved Light Armor Plating Makeshift Hacking Suite Makeshift System Shield > --- WEAPON ----------- Barrage Gun CR-A16's Pointy Stick > --- INVENTORY -------- Datajack [Rating: 30] Favorites ----------- Power Reinforced Ion Engine Engine Reinforced Ion Engine Power Core Light Nuclear Core Propulsion Light Treads Treads Light Treads Wheel Compact Wheel Flight Unit Makeshift Flight Unit Utility Improved Terrain Scanner Device Improved Terrain Scanner Storage High-capacity Matter Pod Processor Seismic Analyzer Hackware Hacking Suite Protection Medium Armor Plating Weapon Particle Gun Energy Gun Particle Gun Ballistic Gun Light Assault Rifle Ballistic Cannon Improved Light Cannon Launcher Rocket Launcher Special Weapon Enhanced Flamer Impact Weapon Hammer Piercing Weapon CR-A16's Pointy Stick Build | -11 -10 -9 -9 -7 -6 ------- Run | Scr Mat Mat Min Zio Pro Slots Evolved 2 | . . 2 . . . Power . | . . . . . . Propulsion . | . . . . . . Utility 2 | . . 2 . . . Weapon . | . . . . . . Parts Attached 61 | 5 11 20 5 7 13 Power 8 | 1 2 . 2 1 2 Engine 6 | 1 1 . 2 1 1 Core 2 | . 1 . . . 1 Reactor . | . . . . . . Propulsion 8 | 2 . 3 . 2 1 Treads 2 | . . 2 . . . Leg . | . . . . . . Wheel 3 | 2 . 1 . . . Hover . | . . . . . . Flight 3 | . . . . 2 1 Utility 20 | 1 5 7 3 2 2 Device 5 | . . 3 1 . 1 Storage 5 | 1 4 . . . . Processor 1 | . . . 1 . . Hackware 3 | . . 1 . 2 . Protection 6 | . 1 3 1 . 1 Artifact . | . . . . . . Weapon 25 | 1 4 10 . 2 8 Energy Gun 5 | . 1 3 . 1 . Energy Cannon . | . . . . . . Ballistic Gun 6 | 1 2 . . . 3 Ballistic Cannon 3 | . 1 2 . . . Launcher 2 | . . 2 . . . Special Weapon 4 | . . . . . 4 Impact Weapon 3 | . . 3 . . . Slashing Weapon . | . . . . . . Piercing Weapon 2 | . . . . 1 1 Special Melee Weapon . | . . . . . . Unidentified Prototypes . | . . . . . . Parts Lost 15 | . 1 5 . . 9 Power 3 | . 1 . . . 2 Propulsion 4 | . . 2 . . 2 Utility 3 | . . 2 . . 1 Weapon 5 | . . 1 . . 4 Highest Loss Streak 4 | . 1 4 . . 4 Average Slot Usage (%) 97 | . 96 92 100 99 93 Engine 9 | . 8 11 11 10 7 Core 1 | . 5 . . . 2 Treads 10 | . . 2 22 16 . Wheel 6 | . 28 13 . . . Flight 5 | . . . . 5 21 Device 10 | . . 19 11 11 10 Storage 4 | . 21 10 . . . Processor 5 | . . . 3 11 7 Hackware 10 | . . 1 11 13 22 Protection 9 | . 6 11 18 8 1 Energy Gun 6 | . 1 1 11 10 3 Ballistic Gun 4 | . 20 4 . . 7 Ballistic Cannon 2 | . 4 7 . . . Launcher 5 | . . 2 11 8 . Piercing Weapon 1 | . . . . 2 6 Naked Turns . | . . . . . . Heaviest Build 33 | 11 29 33 25 25 19 Greatest Support 40 | 32 32 40 40 40 19 Greatest Overweight (x) 4 | . . 4 . 4 . Average Overweight (x) . | . . . . . . Largest Inventory Capacity 10 | 6 10 10 4 4 4 Average Capacity 4 | 5 5 4 4 4 4 Most Carried 6 | 3 6 5 4 4 4 Average Carried 3 | . 3 3 3 3 2 Final Capacity 10 | 6 10 4 4 4 4 Final Carried 6 | . 6 3 4 2 2 Class Distribution -------------------- 36% | Hacker-Mutant 33% | Scavenger-Mutant 29% | Mutant Dominant Class ---------------- Mutant | -10/Materials Mutant | -9/Materials Hacker-Mutant | -9/Mines Scavenger-Mutant | -7/Zion Hacker-Mutant | -6/Proximity Caves Resources | -11 -10 -9 -9 -7 -6 ----------- Run | Scr Mat Mat Min Zio Pro Matter Collected 1535 | 212 454 516 107 111 135 Remotely . | . . . . . . Salvage Created 1400 | . 635 418 78 . 269 Parts 78 | . 40 17 16 . 5 Haulers Intercepted 1 | . 1 . . . . Recyclers Shooed 1 | . 1 . . . . Parts Field Recycled . | . . . . . . Retrieved Matter . | . . . . . . Parts Self-Destructed 21 | . . . . 9 12 Prevented 1 | . . . . . 1 Kills | -11 -10 -9 -9 -7 -6 ------- Run | Scr Mat Mat Min Zio Pro Combat Hostiles Destroyed 33 | . 8 12 9 . 4 Melee 2 | . . 1 . . 1 Guns 14 | . 8 2 1 . 3 Cannons 6 | . . 6 . . . AOE 8 | . . . 8 . . Classes Destroyed 11 | . 5 3 3 . . Worker 3 | . 2 . 1 . . Tunneler 1 | . . . 1 . . Hauler 1 | . 1 . . . . Recycler 2 | . 2 . . . . Operator 2 | . . 2 . . . Watcher 1 | . 1 . . . . Swarmer 9 | . . . 7 . 2 Grunt 20 | . 8 9 1 . 2 Brawler 1 | . . . 1 . . Duelist 1 | . . 1 . . . Sentry 2 | . . 2 . . . Best Kill Streak 5 | . 5 4 4 . 2 Combat Bots Only 4 | . 4 4 4 . 2 Max Kills in Single Turn 4 | . 1 1 4 . 1 Gunslinging . | . . . . . . Exploded 3 | . . . 3 . . Melee 1 | . . 1 . . 1 Uniques/NPCs Destroyed . | . . . . . . Combat | -11 -10 -9 -9 -7 -6 -------- Run | Scr Mat Mat Min Zio Pro Damage Taken 1752 | . 337 740 101 . 574 Core 495 | . 89 228 14 . 164 Absorbed by Shields . | . . . . . . Core Remaining (%) 82 | 100 64 . . . . Volleys Fired 125 | . 51 38 10 . 26 Largest 2 | . 2 2 2 . 2 Hottest 125 | . 60 102 98 . 125 Shots Fired 196 | . 88 59 16 . 33 Gun 142 | . 85 25 8 . 24 Cannon 37 | . 3 34 . . . Launcher 8 | . . . 8 . . Special 9 | . . . . . 9 Kinetic 156 | . 87 54 . . 15 Thermal 32 | . 1 5 8 . 18 Explosive 8 | . . . 8 . . Electromagnetic . | . . . . . . Robot Hit Streak 29 | . 29 14 6 . 19 Robot Miss Streak 3 | . 2 3 1 . 1 Penetration Max . | . . . . . . Secondary Targets 1 | . . . . . 1 Max Gunslinging Chain 1 | . . . . . 1 Shots Hit Robots 190 | . 74 68 11 . 37 Core Hits 76 | . 31 16 15 . 14 Critical Hits 1 | . . 1 . . . Critical Kills 1 | . . 1 . . . Critical Parts Destroyed . | . . . . . . Melee Attacks 33 | . . 27 . . 6 Impact 27 | . . 27 . . . Slashing . | . . . . . . Piercing 6 | . . . . . 6 Sneak Attacks . | . . . . . . Combat Hostiles . | . . . . . . Follow-up Attacks . | . . . . . . Damage Inflicted 3710 | . 820 1198 785 . 907 Guns 1346 | . 784 155 94 . 313 Cannons 626 | . 36 590 . . . Explosions 691 | . . . 691 . . Melee 934 | . . 453 . . 481 Ramming . | . . . . . . Kinetic 1675 | . 809 677 . . 189 Thermal 410 | . 11 68 94 . 237 Explosive 691 | . . . 691 . . Electromagnetic . | . . . . . . Impact 453 | . . 453 . . . Slashing . | . . . . . . Piercing 481 | . . . . . 481 Highest Corruption . | . . . . . . Average Corruption . | . . . . . . Corruption Purged . | . . . . . . Overload Shots . | . . . . . . Overflow Damage 135 | . . 43 . . 92 Projectiles 17 | . . 17 . . . Explosions . | . . . . . . Melee 118 | . . 26 . . 92 Knockbacks 6 | . . 6 . . . Impact 3 | . . 3 . . . Kinetic 3 | . . 3 . . . Secondary . | . . . . . . Self-Inflicted Damage 24 | . . . 24 . . Shots 1 | . . . 1 . . Rammed . | . . . . . . Targets Rammed . | . . . . . . Kicked . | . . . . . . Crushed . | . . . . . . Highest Temperature 252 | . 97 139 192 . 252 Average Temperature 59 | . 34 43 80 . 96 Received Heat Transfer 819 | . 246 408 12 . 153 Siege Activations . | . . . . . . Robots Corrupted . | . . . . . . Combat Hostiles . | . . . . . . Parts Fried 4 | . . 4 . . . Impact Corruptions 5 | . . 5 . . . Robots Melted . | . . . . . . Combat Hostiles . | . . . . . . Parts Melted 1 | . . 1 . . . Heat Transferred 1411 | . 25 148 222 . 1016 Parts Sabotaged . | . . . . . . Parts Stolen . | . . . . . . Parts Stripped . | . . . . . . Power Chain Reactions . | . . . . . . Missiles Intercepted . | . . . . . . Alert | -11 -10 -9 -9 -7 -6 ------- Run | Scr Mat Mat Min Zio Pro Peak Influence 235 | . 235 235 180 . . Initial 37 | . . 37 . . . Average 95 | . 88 122 81 . . Maximum Alert Level 1 | . 1 1 . . . Low Security (%) 92 | 100 94 81 100 . . Level 1 7 | . 5 18 . . . Level 2 . | . . . . . . Level 3 . | . . . . . . Level 4 . | . . . . . . Level 5 . | . . . . . . High Security . | . . . . . . Max Security . | . . . . . . Squads Dispatched 2 | . . 2 . . . Investigation . | . . . . . . Extermination . | . . . . . . Reinforcement 2 | . . 2 . . . Assault . | . . . . . . Garrison . | . . . . . . Intercept . | . . . . . . Construction Impeded . | . . . . . . Haulers Reinforced . | . . . . . . Stealth | -11 -10 -9 -9 -7 -6 --------- Run | Scr Mat Mat Min Zio Pro Distress Signals 2 | . 1 1 . . . Communications Jammed . | . . . . . . Distress Signals . | . . . . . . Times Spotted 58 | . 13 21 9 . 15 Peak Tracking Total 6 | . 4 6 4 . 5 Tactical Retreats 2 | . 1 . . . 1 Traps | -11 -10 -9 -9 -7 -6 ------- Run | Scr Mat Mat Min Zio Pro Traps Triggered . | . . . . . . Indirectly . | . . . . . . Trap Hack Attempts . | . . . . . . Triggered . | . . . . . . Disarmed . | . . . . . . Reprogrammed 1 | . 1 . . . . Reused . | . . . . . . Traps Extracted . | . . . . . . Installed . | . . . . . . Triggered . | . . . . . . Machines | -11 -10 -9 -9 -7 -6 ---------- Run | Scr Mat Mat Min Zio Pro Machines Disabled 3 | . 1 2 . . . Max in Single Turn 1 | . 1 1 . . . Machines Sabotaged . | . . . . . . Garrisons Compromised . | . . . . . . Overloaded Fab Kills . | . . . . . . Fab Network Shutdowns . | . . . . . . Hacking | -11 -10 -9 -9 -7 -6 --------- Run | Scr Mat Mat Min Zio Pro Machines Accessed 10 | . 6 4 . . . Terminals 9 | . 5 4 . . . Fabricators . | . . . . . . Repair Stations . | . . . . . . Recycling Units 1 | . 1 . . . . Scanalyzers . | . . . . . . Garrison Access . | . . . . . . Total Hacks 34 | . 22 12 . . . Successful 21 | . 15 6 . . . Failed 13 | . 7 6 . . . Catastrophic . | . . . . . . Database Lockouts . | . . . . . . Manual 3 | . . . . 3 . Terminals 31 | . 19 12 . . . Fabricators . | . . . . . . Repair Stations . | . . . . . . Recycling Units 3 | . 3 . . . . Scanalyzers . | . . . . . . Garrison Access . | . . . . . . Terminal Hacks 18 | . 12 6 . . . Record 2 | . 1 1 . . . Prototype ID Bank 3 | . 2 1 . . . Branch Access Points 1 | . 1 . . . . Repair Station Index 2 | . 1 1 . . . Alert Level 1 | . 1 . . . . Reprogram Traps 1 | . 1 . . . . Security Status 1 | . 1 . . . . Transport Status 1 | . 1 . . . . Investigation Status 1 | . 1 . . . . Recall Investigation 1 | . . 1 . . . Hauler Manifests 1 | . . 1 . . . Registered Prototypes 1 | . . 1 . . . Zone Layout 2 | . 2 . . . . Fabricator Hacks . | . . . . . . Repair Station Hacks . | . . . . . . Recycling Unit Hacks 3 | . 3 . . . . Process 1 | . 1 . . . . Report Inventory 1 | . 1 . . . . Retrieve Matter 1 | . 1 . . . . Scanalyzer . | . . . . . . Garrison Access Hacks . | . . . . . . Unauthorized Hacks . | . . . . . . Terminals . | . . . . . . Fabricators . | . . . . . . Repair Stations . | . . . . . . Recycling Units . | . . . . . . Scanalyzers . | . . . . . . Garrison Access . | . . . . . . Data Cores Recovered . | . . . . . . Used . | . . . . . . Hacking Detections 6 | . 5 1 . . . Full Trace Events 1 | . 1 . . . . Feedback Events . | . . . . . . Feedback Blocked . | . . . . . . Robot Schematics Acquired . | . . . . . . Robots Built . | . . . . . . Matter . | . . . . . . Time . | . . . . . . Total Robot Build Rating . | . . . . . . Part Schematics Acquired . | . . . . . . Parts Built . | . . . . . . Matter . | . . . . . . Time . | . . . . . . Total Part Build Rating . | . . . . . . Parts Repaired . | . . . . . . Time . | . . . . . . Parts Recycled . | . . . . . . Recycled Matter 141 | . 141 . . . . Retrieved Matter 186 | . 186 . . . . Retrieved Components . | . . . . . . Parts Scanalyzed . | . . . . . . Part Schematics Acquired . | . . . . . . Parts Damaged . | . . . . . . Bothacking | -11 -10 -9 -9 -7 -6 ------------ Run | Scr Mat Mat Min Zio Pro Used RIF Installer . | . . . . . . Robots Hacked . | . . . . . . Non-combat . | . . . . . . Combat . | . . . . . . Robot Hacks Applied . | . . . . . . Relay Couplers Released . | . . . . . . Robots Rewired . | . . . . . . Allies Hacked . | . . . . . . Hacks Repelled . | . . . . . . Allies | -11 -10 -9 -9 -7 -6 -------- Run | Scr Mat Mat Min Zio Pro Total Allies 9 | . . . 1 8 . Largest Group 8 | . . . 1 8 8 Highest-Rated Group 241 | . . . 31 241 241 Highest-Rated Ally 40 | . . . 31 40 40 Total Orders . | . . . . . . Ally Attacks 53 | . . . . . 53 Total Damage 1447 | . . . . . 1447 Kills 9 | . . . . . 9 Allies Corrupted . | . . . . . . Allies Melted . | . . . . . . Intel | -11 -10 -9 -9 -7 -6 ------- Run | Scr Mat Mat Min Zio Pro Robot Analysis Total . | . . . . . . Derelict Logs Recovered 5 | . . . 2 2 1 Drone Launches . | . . . . . . Drone Recoveries . | . . . . . . Exploration | -11 -10 -9 -9 -7 -6 ------------- Run | Scr Mat Mat Min Zio Pro Turns Passed 4765 | 48 691 816 820 1724 666 Spaces Moved 2933 | 37 378 399 451 1007 661 Core 57 | 15 . 1 . 2 39 Treads 1245 | . . 83 451 711 . Legs . | . . . . . . Wheels 715 | 22 378 315 . . . Hover . | . . . . . . Flight 916 | . . . . 294 622 Fastest Speed 37 | 50 100 100 160 37 37 Average Speed 105 | 79 100 115 160 124 37 Slowest Speed 250 | 100 100 250 160 250 50 Overloaded Moves . | . . . . . . Propulsion Burnouts . | . . . . . . Robots Hopped . | . . . . . . Cave-ins Triggered . | . . . . . . Exploration Rate (%) 54 | 4 56 30 97 89 53 Regions Visited 5 Branch Regions 3 Pre-discovered Areas 5 | . . . 2 3 . Known Exits Taken . | . . . . . . Unknown Exits Taken 5 | 1 1 1 1 1 . Scrap Searched 6 | . . . 2 2 2 Spaces Dug . | . . . . . . Terrain Destroyed 89 | . . . 89 . . Melee . | . . . . . . Projectile . | . . . . . . AOE 89 | . . . 89 . . Terrain Rammed . | . . . . . . Walls Destroyed . | . . . . . . Machines Disabled . | . . . . . . Actions | -11 -10 -9 -9 -7 -6 --------- Run | Scr Mat Mat Min Zio Pro Total 4377 | 55 615 661 536 1481 1029 Wait 1127 | 9 143 151 60 457 307 Move 2928 | 36 377 398 450 1006 661 Hop . | . . . . . . Pick Up 56 | 5 21 13 5 3 9 Fast Attach 13 | . 1 5 2 3 2 Attach 43 | 5 10 11 3 4 10 Detach 3 | . 1 . . . 2 Swap 5 | . . 4 . . 1 Drop 44 | . 11 14 6 8 5 Fire 125 | . 51 38 10 . 26 Melee 33 | . . 27 . . 6 Ram . | . . . . . . Kick . | . . . . . . Crush . | . . . . . . Escape Stasis . | . . . . . . Rewire . | . . . . . . Trap . | . . . . . . Miscellaneous . | . . . . . . Route ------- -11/Scrapyard -10/Materials (discovered 2 exits: *Mat / Min) -9/Materials -9/Mines (discovered 3 exits: [*Mat x2] / *Zio) -7/Zion -6/Proximity Caves History --------- Turn | Location | Event 30 | -11/Scrapyard | Discovered new exit (range 15) 49 | -11/Scrapyard | Entered Materials 317 | -10/Materials | Build established: Mutant 695 | -10/Materials | Discovered new exit (range 14) 700 | -10/Materials | Identified exit to Mines 740 | -10/Materials | Entered another Materials area 740 | -9/Materials | Evolved 2 slots: Utility x2 1392 | -9/Materials | Core integrity fell below 50% 1420 | -9/Materials | Lost 4 parts (1n2u1w) 1451 | -9/Materials | Discovered new exit (range 12) 1556 | -9/Materials | Entered Mines 1581 | -9/Mines | Learned location of Storage (-9) 1796 | -9/Mines | Learned location of Zion (-7) 1813 | -9/Mines | Discovered new exit (range 7) 1819 | -9/Mines | Received a Rocket Launcher from a helpful Derelict 2054 | -9/Mines | Build established: Hacker-Mutant 2299 | -9/Mines | Discovered new exit (range 15) 2323 | -9/Mines | Received a Mining Laser from a helpful Derelict 2366 | -9/Mines | A Derelict revealed a hidden shortcut to a safe place 2376 | -9/Mines | Entered Zion 2376 | -7/Zion | Accompanied by 1 ally 2409 | -7/Zion | Found CR-A16's Pointy Stick 2435 | -7/Zion | Discovered new exit (range 15) 2448 | -7/Zion | Build established: Scavenger-Mutant 2691 | -7/Zion | Given A8's code to call for help 2734 | -7/Zion | Learned Factory garrison access intel 2765 | -7/Zion | Learned Factory emergency access door positions 2806 | -7/Zion | Learned location of Armory (-4) 3054 | -7/Zion | Given the Hacking Drone Bay 3283 | -7/Zion | Imprinted 3285 | -7/Zion | Declared Zion's savior 3745 | -7/Zion | Received a visual enhancement algorithm 3931 | -7/Zion | Build established: Hacker-Mutant 3983 | -7/Zion | Gained Derelict followers 4100 | -7/Zion | Entered Proximity Caves 4100 | -6/Proximity Caves | Accompanied by 8 allies 4175 | -6/Proximity Caves | Attracted the attention of an 0b10 checkpoint 4339 | -6/Proximity Caves | Lost 3 parts (1p1n1w) 4417 | -6/Proximity Caves | Spotted B-75 Beast 4530 | -6/Proximity Caves | Lost 4 parts (1p3w) 4761 | -6/Proximity Caves | Core integrity fell below 20% 4766 | -6/Proximity Caves | Destroyed by B-75 Beast with Magnetic Acceleration Cannon Last Messages --------------- 04647_ Acquired 10 matter. 04648_ Sneak attack on 1A-YGE(g). 04648_ Destroyed Lgt. Angular Momentum Engine. 04648_ Destroyed Carbon-fiber Leg. 04648_ Destroyed Beamcaster. 04648_ Destroyed Carbon-fiber Leg. 04648_ Destroyed Imp. Heat Sink. 04651_ Lgt. Treads fries itself beyond repair. 04651_ Sneak attack on 1A-YGE(g). 04651_ 1A-YGE(g) destroyed. 04702_ Acquired Enh. Flamer. 04748_ B-75 Beast misfires. 04754_ Imp. Light Armor Plating destroyed. 04754_ Knocked back. 04757_ B-75 Beast misfires. 04760_ VTOL Module destroyed. 04760_ Knocked back. 04761_ Dropped CR-A16's Pointy Stick. 04763_ B-75 Beast misfires. [Achievement: This Is Interesting...] Map ----- +----------------------------------------------------+ | """ #### ????##???## ##?? | | " #?# #? #?#??#?### ####### | | ### ## ###?####?# ##??#?# | | ## ##### ## #?#?## ### ##??### | | %## ### ##?## ### ##### | | ### ##?## ##### ### ### | | ######??## # ##### % | | "" #???######% #?#??## ! | | ##?### %# #??### ### ## | | %#### # ##### ##?# ## | | ## %## ############## | | ####### ## ####?####?#?## | | #### ####?### ######## #?######?#### | | #### ######## ######## ##### ####! | | ### ## ### % #### | | ## #?# ! ! #### | | ########### ## ;##### #?#? | | ###?#?##??### ## ###?## ### #?## | | ##?#####?#### ;= ;###?## #### # | | ########??#?# % ; ?### #### # | | ## ##?##???#??### [ ##### ### # | | #########?########## #### ## ## | | #??#??#?#?# ; #### ### ##? | | #???#?##### ; ;#;# ##?#####?? | | ## ???##?#?##### BB ##??????#? | | ?## ????#??##??## BB @ ## ###?????#? | | ??# ????????#??# ; ;########## ####?#??# | | ???###???###?????# ;;###???#???#?####????#??? | | #???????#??????#?##########?#?#??##?#???##???#???? | | ?????????#???#??#???#??#???##??##??##???#???##???? | | ?????#??#????#?#??????#??##?#?????#??###??#??#???? | | ??#?#?#????#??##??#??####??#??##??###????????????? | | ?????#????????????#?????####??#?##??????????#????? | | ??????????????##???#?????????#??????????#????????? | | ?????????????????????#???#????#??????????????????? | | ???????????????????????#??????????????????????#??? | | ???????????????????????????????#??##?????????????? | | ????????????????????#????????#???????????????????? | | ????????????????????????#?#??????????????????????? | | ????????????????????????????#???#????????????????? | | ?????????????????????????????????????????????????? | | ?????????????????????????????????????????????????? | | ?????????????????????????????????????????????????? | | | | | | | | | | | | | | | +----------------------------------------------------+ Best States ------------- Heat Dissipation 28 Energy Generation 16 Energy Capacity 290 Matter Stores 492 Matter Capacity 500 Sight Range 16 Robot Scan Range 13 Terrain Scan Range 16 Terrain Scan Density 60 Additional Mass Support 6 Armor Coverage 225 Resistance: KI 20 Resistance: TH 20 Resistance: EX 20 Resistance: EM 20 Resistance: I 20 Resistance: S 20 Resistance: P 20 Core Shielding 20 Evasion (%) 62 Recoil Reduction 2 Offensive Hacking 21 Defensive Hacking 11 Item Schematics ----------------- None Robot Schematics ------------------ None Fabricated ------------ Nothing Alien Tech Used ----------------- None Achievements -------------- The One This Is Interesting... Challenges ------------ None Game ------ Seed FireFluxRedistributor Manual? 0 Play Time 00:50:57 Cumulative 33.2 hours Start 2021.03.19 @ 17:07:24 End 2021.03.19 @ 18:00:50 Sessions 1 Manual Loads 0 Difficulty Adventurer Special Mode None Game No. 37 Rogue 32 Adventurer 5 Explorer 0 Win Type - Total 0 Types 0/0/0/0/0/0/0/0/0 Lore% 26 Gallery% 39 Achievement% 18 Wizard Run 0 Options --------- ASCII 0 Keyboard 0 Movement Numpad Keybinds 0 Fullscreen 2 Font 18/X11 Map View 76x50 Tactical HUD 1 Map Filters NONE Filters NONE Steam 1 RUN: bd310550-3373-4f94-9082-b1c9e13e9105